bitfinex/quotes_ETHUSD_20241122
["timestamp","ask_amount","ask_price","bid_price","bid_amount"]
[1732262582638,6.85164818,3364.0,3363.2,0.2964]
[1732262582954,3.49119073,3363.7,3363.2,0.2964]
[1732262583811,0.55,3363.9,3363.3,0.02972966]
[1732262584219,3.49119073,3364.0,3363.3,0.02972966]
[1732262584422,3.49119073,3364.3,3363.5,0.2964]
[1732262584730,2.97135,3365.5,3363.7,0.2964]
[1732262584731,4.32049073,3364.9,3363.7,0.2964]
[1732262584922,0.43204907,3364.8,3363.8,0.02972245]
[1732262585368,3.49119073,3364.6,3363.8,0.02972245]
[1732262585565,3.49119073,3364.6,3364.0,0.2964]
[1732262585851,3.49119073,3364.6,3364.1,0.02972192]
[1732262586347,3.49119073,3364.6,3364.0,0.32612194]
[1732262586546,3.49119073,3364.6,3364.0,0.2964]
[1732262586746,3.49119073,3364.3,3364.0,0.2964]
[1732262587429,0.55,3364.2,3364.0,0.2964]
[1732262588552,0.55,3364.5,3364.0,0.2964]
[1732262588735,3.49119073,3364.6,3364.0,0.2964]
[1732262589051,4.12378615,3365.2,3364.0,0.32612251]
[1732262589052,3.49119073,3364.9,3364.0,0.32612251]
[1732262589949,3.49119073,3364.9,3364.3,0.2964]
[1732262590287,3.49119073,3365.2,3364.3,0.3261185]
[1732262590918,3.49119073,3365.2,3364.3,0.2964]
[1732262591233,1.55067907,3365.5,3364.3,0.2964]
[1732262591234,0.55,3364.8,3364.3,0.2964]
[1732262591913,0.7997,3366.3,3364.5,0.2964]
[1732262592131,0.7997,3366.3,3364.1,0.01]
[1732262592132,3.49119073,3366.2,3365.0,0.2964]
[1732262592342,0.42908907,3366.1,3365.0,0.2964]
[1732262592522,0.42908907,3366.1,3365.1,0.02971184]
[1732262593220,0.42908907,3366.1,3365.3,0.2964]
[1732262593420,0.7997,3366.3,3365.4,0.02971009]
[1732262593651,3.49119073,3366.5,3365.6,0.2964]
[1732262593812,3.9233398,3366.5,3365.6,0.2964]
[1732262594436,3.9233398,3366.5,3365.7,0.02970695]
[1732262594914,3.49119073,3366.8,3365.9,0.2964]
[1732262595224,4.29449073,3367.2,3366.0,0.02970563]
[1732262595555,3.78813873,3367.5,3366.2,0.2964]
[1732262595739,3.49119073,3367.5,3366.3,0.02970023]
[1732262596048,3.49119073,3367.5,3366.5,0.2964]
[1732262596255,0.42944907,3367.5,3366.5,0.3260991]
[1732262596812,0.1507056,3367.9,3366.7,0.2964]
[1732262597047,0.1507056,3367.9,3366.7,0.32609639]
[1732262598448,0.55,3367.8,3366.7,0.32609639]
[1732262599673,0.55,3367.8,3366.7,0.02969639]
[1732262601974,0.55,3367.4,3366.6,0.7736]
[1732262602139,0.55,3367.0,3366.2,0.7978]
[1732262608003,5.40879853,3367.9,3366.4,0.8279]
[1732262608286,4.48269293,3367.5,3366.5,0.0296977]
[1732262609390,0.55,3367.4,3366.5,0.0296977]
[1732262609549,0.55,3367.4,3366.5,0.3260977]
[1732262609751,0.55,3367.4,3366.5,0.2964]
[1732262610167,0.55,3367.4,3366.5,0.32609773]
[1732262610557,0.55,3367.4,3366.7,0.2964]
[1732262610900,0.55,3367.4,3366.8,0.02969734]
[1732262611067,0.55,3367.8,3367.0,0.2964]
[1732262611267,0.55,3367.8,3367.0,0.32609603]
[1732262611585,0.55,3367.8,3367.0,0.2964]
[1732262612178,4.63339853,3367.9,3367.2,0.2964]
[1732262613403,0.1507056,3367.9,3367.4,0.8155]
[1732262613574,0.1507056,3367.9,3367.5,0.2964]
[1732262613778,0.8,3368.8,3367.7,0.2964]
[1732262614080,0.8,3370.3,3368.3,0.2964]
[1732262614276,4.48269293,3370.6,3368.7,0.2964]
[1732262614624,4.48269293,3370.6,3368.4,3.02967733]
[1732262614625,4.48269293,3370.6,3368.9,0.8087]
[1732262614758,0.8113,3370.8,3369.1,0.8087]
[1732262614960,6.23269293,3371.0,3369.4,0.2964]
[1732262615162,6.23269293,3371.0,3369.6,0.8087]
[1732262615419,0.62326929,3370.9,3369.8,0.8087]
[1732262615600,4.48269293,3370.6,3369.8,0.8087]
[1732262615799,0.44826929,3370.5,3369.9,0.02967006]
[1732262615999,6.23269293,3371.0,3369.9,0.02967006]
[1732262616221,2.96691,3370.5,3369.2,0.2964]
[1732262616506,3.73568,3369.2,3366.9,0.7729]
[1732262616674,4.48269293,3369.0,3367.0,0.0296927]
[1732262616873,4.48269293,3369.0,3367.1,0.7829]
[1732262617080,4.48269293,3369.0,3367.4,0.7729]
[1732262617081,0.44826929,3369.0,3367.4,0.7729]
[1732262617304,4.48269293,3369.4,3367.5,0.02968305]
[1732262617602,0.02967013,3369.6,3367.5,0.02968305]
[1732262617603,4.48269293,3368.6,3367.5,0.02968305]
[1732262617814,0.55,3368.5,3367.4,1.0693]
[1732262617984,0.55,3368.5,3367.6,0.02968784]
[1732262618298,0.55,3368.5,3367.7,0.7729]
[1732262618465,0.55,3368.5,3367.8,0.02968371]
[1732262620416,0.55,3368.5,3367.9,0.38025837]
[1732262620567,0.55,3369.3,3368.1,0.7729]
[1732262620772,4.48269293,3369.8,3368.2,0.02968001]
[1732262620969,0.02967013,3369.7,3368.2,0.44499585]
[1732262621188,0.02967013,3369.7,3368.2,0.02968001]
[1732262622067,0.57967013,3369.7,3368.2,0.02968001]
[1732262623425,0.55,3369.7,3368.2,0.02968001]
[1732262623569,0.57967013,3369.7,3368.2,0.02968001]
[1732262623911,0.55,3369.5,3368.3,0.409898]
[1732262624069,4.48269293,3370.6,3369.0,0.7993]
[1732262624264,4.48269293,3370.6,3369.1,3.02966948]
[1732262624566,4.48269293,3370.6,3369.1,0.32606948]
[1732262625608,4.48269293,3370.6,3369.3,0.2964]
[1732262625847,0.44826929,3370.6,3369.4,0.44075474]
[1732262626008,6.23269293,3371.0,3369.4,0.44075474]
[1732262626207,4.48269293,3370.6,3369.5,0.7848]
[1732262626518,4.48269293,3370.1,3369.5,0.7848]
[1732262626719,4.93096222,3370.1,3369.5,0.7848]
[1732262627742,0.55,3370.0,3369.5,0.7848]
[1732262628935,4.48269293,3370.8,3369.6,0.02967268]
[1732262629308,4.48269293,3370.8,3369.7,0.41108727]
[1732262629507,4.48269293,3370.8,3369.8,0.02966741]
[1732262630149,0.55,3370.7,3369.8,0.02966741]
[1732262630654,0.55,3370.2,3369.5,1.0812]
[1732262631911,0.57967013,3370.2,3369.5,0.7848]
[1732262632114,0.55,3370.0,3369.5,0.7848]
[1732262632946,0.55,3370.2,3369.5,0.7848]
[1732262634053,0.55,3370.2,3369.6,0.0296726]
[1732262634352,1.75,3371.0,3369.5,0.7848]
[1732262634353,0.55,3370.6,3369.5,1.11087129]
[1732262634855,0.57967013,3370.6,3369.5,1.11087129]
[1732262635060,0.55,3370.6,3369.5,1.11087129]
[1732262635350,0.55396,3370.9,3369.6,0.02966991]
[1732262635550,0.530396,3370.8,3369.6,0.02966991]
[1732262635855,0.02967013,3370.7,3369.6,0.02966991]
[1732262636287,0.57967013,3370.7,3369.6,0.02966991]
[1732262636778,0.55,3370.7,3369.6,0.02966991]
[1732262637447,0.55,3370.9,3369.6,0.02966991]
[1732262639370,0.02967013,3370.8,3369.6,0.02966991]
[1732262639546,0.55,3370.7,3369.6,0.02966991]
[1732262639746,0.02967013,3370.6,3369.6,0.02966991]
[1732262640946,0.02967013,3370.6,3369.5,1.0812]
[1732262643859,0.55,3370.5,3369.5,1.0812]
[1732262644091,0.02967013,3370.4,3369.5,1.0812]
[1732262644594,4.3652,3370.2,3369.6,0.2964]
[1732262644803,0.55,3369.8,3369.6,0.2964]
[1732262644962,0.02967013,3369.7,3369.6,0.2964]
[1732262645368,6.54729013,3369.7,3369.6,0.2964]
[1732262645695,6.51779,3369.6,3368.8,0.2964]
[1732262645858,0.55,3369.4,3368.8,0.2964]
[1732262646057,5.03269293,3369.1,3368.8,0.2964]
[1732262646261,0.02967013,3369.0,3368.8,0.2964]
[1732262646571,0.55,3368.9,3368.8,0.2964]
[1732262647158,7.31512,3368.9,3368.8,0.2964]
[1732262647359,3.0,3368.8,3368.5,0.2964]
[1732262647664,11.00128293,3368.6,3367.3,0.2964]
[1732262647884,0.57967013,3368.5,3367.3,0.2964]
[1732262649167,0.54213375,3368.5,3367.4,0.02969179]
[1732262649363,0.54213375,3368.5,3367.4,0.32609179]
[1732262649562,0.7968,3368.9,3367.6,0.2964]
[1732262649790,4.48269293,3368.2,3367.6,0.2964]
[1732262650013,0.85761942,3368.8,3367.1,0.32609322]
[1732262650014,4.51236306,3368.6,3367.1,0.32609322]
[1732262650261,0.7968,3368.9,3367.3,0.2964]
[1732262650496,0.02967013,3368.8,3367.5,0.2964]
[1732262651277,0.57967013,3368.8,3367.5,0.2964]
[1732262651669,1.75,3369.2,3367.9,0.2964]
[1732262651904,1.75,3369.2,3368.1,0.2964]
[1732262651905,0.02967013,3369.1,3368.1,0.2964]
[1732262652197,1.75,3369.2,3368.1,0.2964]
[1732262652572,0.02967013,3369.1,3368.1,0.2964]
[1732262653271,0.57967013,3369.1,3368.1,0.2964]
[1732262653815,6.23269293,3369.2,3368.2,0.32608385]
[1732262653982,1.75,3369.2,3368.4,0.2964]
[1732262654191,1.75,3369.2,3368.5,0.02968168]
[1732262654582,1.75,3369.2,3368.7,0.2964]
[1732262655206,1.75,3369.2,3369.1,0.2964]
[1732262656372,1.75,3369.2,3369.1,1.0879]
[1732262660636,1.75,3369.2,3368.8,0.2964]
[1732262664734,4.48269293,3368.9,3368.4,0.2964]
[1732262664930,0.57967013,3368.8,3368.4,0.2964]
[1732262665129,0.57967013,3368.8,3367.9,0.7671]
[1732262665289,0.55,3368.8,3368.0,0.2964]
[1732262665626,4.75,3369.2,3368.1,0.02968712]
[1732262665627,1.75,3369.2,3368.1,0.02968712]
[1732262665795,0.57967013,3369.1,3368.0,0.2964]
[1732262666205,0.55,3368.8,3368.0,0.2964]
[1732262666410,0.02967013,3368.7,3368.0,0.2964]
[1732262666715,0.55,3368.8,3368.0,0.2964]
[1732262667944,0.83547013,3368.7,3368.0,0.2964]
[1732262668103,0.55,3368.6,3368.0,0.2964]
[1732262668302,0.02967013,3368.5,3367.3,0.2964]
[1732262668504,0.02967013,3368.5,3367.7,0.2964]
[1732262668750,0.55,3368.4,3367.7,0.2964]
[1732262668938,0.02967013,3368.3,3367.7,0.2964]
[1732262669446,4.48269293,3368.1,3367.3,0.2964]
[1732262669613,0.55,3368.6,3367.3,0.2964]
[1732262669813,0.55,3368.3,3367.3,0.2964]
[1732262670140,0.55,3368.3,3367.3,0.32609212]
[1732262670351,0.55,3368.6,3367.3,0.32609212]
[1732262670847,4.48269293,3368.8,3367.5,0.2964]
[1732262671147,7.00089293,3369.2,3367.8,0.2964]
[1732262671454,7.00089293,3369.2,3367.9,0.0296861]
[1732262672242,7.00089293,3369.2,3367.8,0.2964]
[1732262672243,0.55,3368.7,3367.8,0.2964]
[1732262673038,0.55,3368.7,3367.8,0.32608701]
[1732262673406,7.00089293,3369.2,3367.8,0.32608701]
[1732262673630,0.55,3369.1,3367.8,0.32608702]
[1732262673844,0.55,3369.1,3367.9,1.0495]
[1732262674335,0.55,3369.1,3368.0,0.02968449]
[1732262675078,7.00089293,3369.2,3368.0,0.02968449]
[1732262675229,6.23269293,3369.2,3368.0,0.02968449]
[1732262675767,6.23269293,3369.2,3368.4,0.2964]
[1732262675768,1.75,3369.2,3368.4,0.2964]
[1732262676064,1.75,3369.2,3368.6,0.2964]
[1732262676361,1.75,3369.2,3368.7,0.02968076]
[1732262676736,1.75,3369.2,3368.9,0.2964]
[1732262677387,0.55,3369.1,3368.9,0.2964]
[1732262677751,0.55,3369.1,3368.5,0.2964]
[1732262678250,1.75,3369.2,3368.5,0.2964]
[1732262679196,0.55,3369.1,3368.5,0.2964]
[1732262679762,0.55,3369.1,3368.6,0.2964]
[1732262679971,0.55,3368.9,3368.6,0.2964]
[1732262680900,0.55,3368.9,3368.2,0.2964]
[1732262681717,4.48269293,3368.8,3368.2,0.2964]
[1732262681881,4.48269293,3368.8,3367.9,0.2964]
[1732262684611,0.55,3368.7,3367.9,0.2964]
[1732262685224,1.13411929,3368.7,3367.9,0.2964]
[1732262685994,1.13411929,3368.7,3368.0,0.2964]
[1732262686191,0.55,3368.7,3368.0,0.2964]
[1732262686412,0.55,3368.3,3368.0,0.2964]
[1732262686988,1.3498,3368.2,3368.1,0.2964]
[1732262687213,5.83249293,3368.2,3368.1,0.2964]
[1732262687382,6.71574222,3368.2,3368.1,0.2964]
[1732262688113,0.55,3368.1,3366.8,0.2964]
[1732262688318,4.48269293,3367.7,3366.8,0.2964]
[1732262689387,5.03269293,3368.1,3366.9,0.02969689]
[1732262691090,5.03269293,3368.1,3366.8,0.32609542]
[1732262691403,5.03269293,3368.1,3366.8,0.2964]
[1732262691732,4.48269293,3367.7,3366.8,0.2964]
[1732262692928,4.48269293,3367.7,3366.8,0.32609551]
[1732262693125,0.55,3368.1,3366.8,0.32609551]
[1732262693126,5.03269293,3368.1,3366.8,0.32609551]
[1732262694232,5.03269293,3368.1,3366.8,0.2964]
[1732262694773,5.61594222,3368.1,3366.8,0.2964]
[1732262695131,0.55,3367.6,3366.8,0.2964]
[1732262695332,0.55,3367.6,3365.6,0.02969553]
[1732262695333,4.48269293,3367.3,3366.9,0.2964]
[1732262695533,0.55,3367.2,3366.9,0.2964]
[1732262695770,1.12835929,3367.2,3366.9,0.2964]
[1732262696362,1.12835929,3367.2,3366.1,0.2964]
[1732262696544,0.55,3367.2,3366.1,0.2964]
[1732262696979,0.55,3367.2,3366.1,0.32610258]
[1732262697868,0.55,3367.2,3366.1,0.2964]
[1732262698286,4.48269293,3366.9,3366.1,0.2964]
[1732262698579,0.55,3366.8,3366.1,0.2964]
[1732262698790,0.55,3366.8,3366.1,0.70605]
[1732262698947,0.55,3366.8,3366.1,0.2964]
[1732262699581,0.2536,3366.8,3366.1,0.2964]
[1732262699921,5.31289293,3366.9,3366.1,0.2964]
[1732262700259,4.48269293,3366.9,3366.1,0.2964]
[1732262701285,4.48269293,3366.5,3366.2,0.2964]
[1732262701849,0.55,3366.4,3366.2,0.2964]
[1732262702047,1.80336929,3366.3,3366.2,0.2964]
[1732262702280,1.80336929,3366.3,3365.3,0.2964]
[1732262702487,1.3001,3366.3,3365.3,0.2964]
[1732262702708,4.48269293,3366.1,3365.3,0.2964]
[1732262703251,4.48269293,3366.1,3363.3,0.02971154]
[1732262703252,0.55,3365.6,3365.4,0.2964]
[1732262703448,0.828,3365.5,3365.4,0.2964]
[1732262703699,4.48269293,3365.7,3365.4,0.2964]
[1732262703880,0.55,3365.6,3365.4,0.2964]
[1732262704195,0.55,3365.6,3364.5,0.2964]
[1732262706892,4.48269293,3365.7,3364.9,0.2964]
[1732262707800,4.48269293,3365.7,3364.7,0.2964]
[1732262708493,5.01376222,3365.7,3364.7,0.2964]
[1732262708861,5.01376222,3365.7,3364.5,0.2964]
[1732262710370,0.828,3365.9,3364.6,0.02971695]
[1732262710572,4.48269293,3366.1,3364.8,0.2964]
[1732262710760,4.48269293,3366.1,3364.8,0.32611289]
[1732262711177,4.48269293,3366.1,3365.0,0.2964]
[1732262712391,0.8028,3366.6,3365.3,0.2964]
[1732262712723,4.48269293,3366.9,3365.7,0.2964]
[1732262713276,4.48269293,3366.9,3365.7,0.32610712]
[1732262713483,0.8028,3367.1,3365.9,1.0673]
[1732262713685,0.8028,3367.1,3366.1,0.2964]
[1732262714819,4.48269293,3367.3,3366.0,0.2964]
[1732262715340,4.48269293,3366.9,3366.0,0.2964]
[1732262715614,2.9695,3367.6,3366.0,0.2964]
[1732262715615,4.48269293,3366.5,3366.0,0.2964]
[1732262716018,4.48269293,3366.5,3366.1,0.2964]
[1732262716177,0.55,3366.4,3366.1,0.2964]
[1732262716382,0.50326929,3366.3,3366.1,0.2964]
[1732262716919,0.50326929,3366.3,3365.3,0.2964]
[1732262717078,5.23829293,3366.1,3365.3,0.2964]
[1732262717284,0.55,3366.0,3365.3,0.2964]
[1732262718019,0.55,3366.0,3365.0,0.2964]
[1732262718786,5.23829293,3366.1,3365.0,0.2964]
[1732262720324,0.55,3366.0,3365.0,0.2964]
[1732262728827,4.03538965,3366.0,3365.0,0.2964]
[1732262730456,3.48538965,3365.6,3364.7,0.2964]
[1732262730634,3.91487862,3365.6,3364.7,0.2964]
[1732262730950,3.48538965,3365.6,3364.7,0.2964]
[1732262731536,0.8095,3365.9,3364.7,0.2964]
[1732262731711,0.55,3365.8,3364.8,0.02971815]
[1732262732112,0.8095,3365.9,3364.8,0.02971815]
[1732262732343,0.8095,3365.9,3364.7,0.2964]
[1732262733128,0.7643,3366.5,3365.0,0.2964]
[1732262733314,0.7643,3366.5,3365.2,0.2964]
[1732262734741,3.48538965,3366.1,3365.2,0.2964]
[1732262735058,0.7905,3365.9,3365.2,0.2964]
[1732262735235,1.21808897,3365.9,3364.9,0.2964]
[1732262735435,0.55,3365.8,3364.9,0.2964]
[1732262735652,4.03538965,3365.8,3364.9,0.2964]
[1732262736137,3.48538965,3365.5,3364.9,0.2964]
[1732262736343,3.48538965,3365.5,3364.3,0.2964]
[1732262740120,4.03538965,3365.8,3364.3,0.2964]
[1732262740320,4.03538965,3365.8,3364.5,0.2964]
[1732262740523,4.03538965,3365.8,3364.6,0.02971662]
[1732262740755,0.7905,3365.9,3364.8,0.2964]
[1732262742248,3.48538965,3366.1,3364.8,0.2964]
[1732262743461,3.48538965,3366.1,3365.2,0.2964]
[1732262746238,0.55,3366.4,3365.2,0.2964]
[1732262748470,3.48538965,3366.1,3365.2,0.2964]
[1732262748668,0.34853897,3366.0,3365.2,0.2964]
[1732262749048,3.48538965,3365.7,3365.3,0.2964]
[1732262749987,3.48538965,3365.7,3364.9,0.2964]
[1732262750881,3.48538965,3366.1,3365.1,0.2964]
[1732262751034,0.7986,3366.4,3365.3,0.2964]
[1732262751035,4.28398965,3366.4,3365.3,0.2964]
[1732262751940,4.28398965,3366.4,3365.5,0.2964]
[1732262752138,3.48538965,3366.4,3365.5,0.2964]
[1732262752365,0.42839896,3366.3,3365.5,0.2964]
[1732262752539,3.48538965,3366.4,3365.5,0.2964]
[1732262753246,4.27538965,3366.7,3365.8,0.2964]
[1732262754282,5.00292862,3366.7,3365.8,0.2964]
[1732262756165,4.21292862,3366.7,3365.8,0.2964]
[1732262756376,3.48538965,3366.7,3365.8,0.2964]
[1732262757259,3.48538965,3366.4,3365.8,0.2964]
[1732262760092,0.55,3366.3,3365.8,0.2964]
[1732262760289,3.48538965,3366.0,3365.9,0.2964]
[1732262762262,3.48538965,3366.0,3365.5,0.2964]
[1732262762468,0.55,3366.3,3365.5,0.2964]
[1732262762662,3.48538965,3366.4,3365.5,0.2964]
[1732262763593,3.91585862,3366.4,3365.5,0.2964]
[1732262766254,0.55,3366.3,3365.5,0.2964]
[1732262772796,3.48538965,3366.0,3365.5,0.2964]
[1732262775039,3.18898965,3366.0,3365.5,0.2964]
[1732262775169,4.03538965,3366.3,3365.5,0.2964]
[1732262777296,4.56390551,3366.3,3365.5,0.2964]
[1732262778156,3.48538965,3365.9,3365.5,0.2964]
[1732262778363,0.55,3365.8,3365.6,0.2964]
[1732262778583,3.48538965,3365.7,3365.6,0.2964]
[1732262778804,3.48538965,3365.7,3365.6,0.16471232]
[1732262779014,3.48538965,3365.7,3365.0,0.7625]
[1732262779983,3.48538965,3365.7,3363.7,0.02971825]
[1732262779984,3.48538965,3365.3,3364.8,0.2964]
[1732262780172,3.48538965,3364.9,3364.8,0.2964]
[1732262781313,3.48538965,3364.9,3364.1,0.2964]
[1732262784986,3.18898965,3364.9,3364.1,0.2964]
[1732262785187,0.7905,3365.7,3364.2,0.32612266]
[1732262785375,0.7905,3365.7,3363.1,0.01]
[1732262785376,0.7905,3365.7,3364.6,0.2964]
[1732262785581,4.27588965,3365.7,3364.6,0.2964]
[1732262785896,3.48538965,3365.7,3364.9,0.2964]
[1732262786109,3.48538965,3366.0,3364.9,0.2964]
[1732262786330,3.48538965,3366.0,3365.1,0.2964]
[1732262786547,3.48538965,3365.7,3365.1,0.2964]
[1732262788034,3.48538965,3365.4,3365.1,0.2964]
[1732262788218,3.48538965,3365.4,3364.7,0.2964]
[1732262788425,3.48538965,3364.8,3364.7,0.2964]
[1732262788623,3.83392862,3364.8,3364.7,0.2964]
[1732262788819,3.48538965,3364.8,3364.7,0.2964]
[1732262789049,4.27468965,3364.8,3364.7,0.2964]
[1732262790215,4.27468965,3364.8,3364.0,0.2964]
[1732262791936,3.48538965,3364.2,3364.1,0.2964]
[1732262792341,4.30558965,3364.2,3364.1,0.2964]
[1732262793059,3.48538965,3364.4,3363.3,0.2964]
[1732262793893,3.48538965,3364.1,3363.3,0.2964]
[1732262794077,3.48538965,3364.1,3363.2,0.823]
[1732262794374,3.48538965,3364.1,3363.3,0.2964]
[1732262795229,3.83392862,3364.1,3363.3,0.2964]
[1732262795860,0.7897,3364.0,3363.4,0.2964]
[1732262796155,3.48538965,3363.5,3363.4,0.2964]
[1732262796537,3.48538965,3363.8,3363.4,0.2964]
[1732262796739,3.48538965,3363.8,3361.7,0.02973506]
[1732262797048,0.48250896,3363.7,3361.8,0.2964]
[1732262797249,0.48250896,3363.7,3362.7,0.2964]
[1732262797600,3.48538965,3363.8,3362.7,0.2964]
[1732262798852,3.48538965,3363.4,3362.7,0.2964]
[1732262800886,3.48538965,3363.0,3362.7,0.2964]
[1732262801048,0.34853897,3362.9,3362.7,0.2964]
[1732262801230,3.48538965,3363.0,3362.7,0.2964]
[1732262801951,3.48538965,3363.0,3362.4,0.2964]
[1732262802154,3.96708862,3363.0,3362.4,0.2964]
[1732262802667,3.48538965,3362.7,3362.4,0.2964]
[1732262804562,0.48169897,3363.0,3362.4,0.2964]
[1732262804762,3.48538965,3363.1,3362.4,0.2964]
[1732262805187,3.48538965,3363.5,3362.6,0.8171]
[1732262805394,3.48538965,3363.5,3362.7,0.2964]
[1732262805551,3.90969862,3363.5,3362.7,0.2964]
[1732262805752,3.48538965,3363.2,3362.7,0.2964]
[1732262807965,3.48538965,3363.9,3362.7,3.0]
[1732262808276,3.48538965,3363.9,3363.2,0.2964]
[1732262809789,3.18898965,3363.9,3363.2,0.2964]
[1732262810274,3.18898965,3363.9,3363.0,0.2964]
[1732262810460,4.24568965,3364.3,3363.0,0.2964]
[1732262810664,3.48538965,3364.3,3363.2,0.2964]
[1732262810891,4.29088965,3364.6,3363.2,0.2964]
[1732262811102,3.48538965,3364.6,3363.4,0.2964]
[1732262811280,3.48538965,3364.6,3362.7,0.58419981]
[1732262811281,3.48538965,3364.9,3363.6,0.2964]
[1732262812874,3.48538965,3364.9,3363.8,0.2964]
[1732262813318,0.7544,3365.2,3363.8,0.2964]
[1732262813319,3.48538965,3364.6,3363.8,0.2964]
[1732262813471,3.48538965,3364.3,3363.8,0.2964]
[1732262813811,3.48538965,3364.0,3363.8,0.2964]
[1732262815578,3.48538965,3364.0,3363.3,0.2964]
[1732262815910,3.48538965,3364.0,3363.3,0.70689]
[1732262816095,3.48538965,3364.0,3363.3,0.2964]
[1732262820539,0.8064,3364.5,3362.6,0.59082764]
[1732262820540,3.48538965,3364.4,3363.5,0.2964]
[1732262821173,0.8064,3364.5,3363.5,0.2964]
[1732262821310,0.42917897,3364.4,3363.5,0.2964]
[1732262822513,3.48538965,3364.7,3363.6,0.2964]
[1732262824999,3.48538965,3364.4,3363.6,0.2964]
[1732262825431,3.48538965,3364.1,3363.6,0.2964]
[1732262825927,3.48538965,3364.4,3363.6,0.2964]
[1732262828361,0.7745,3364.7,3363.6,0.2964]
[1732262828564,3.48538965,3364.8,3363.8,0.2964]
[1732262829630,3.48538965,3364.4,3363.8,0.2964]
[1732262829973,3.18898965,3364.4,3363.7,0.8249]
[1732262830474,3.18898965,3364.4,3363.7,0.5285]
[1732262830826,3.18898965,3364.4,3363.8,0.2964]
[1732262833377,3.48538965,3364.8,3363.8,0.2964]
[1732262833667,0.42876897,3364.7,3363.8,0.2964]
[1732262834371,3.48538965,3364.8,3363.8,0.2964]
[1732262839385,3.48538965,3364.8,3363.7,0.2319]
[1732262840278,3.48538965,3364.8,3363.8,0.2964]
[1732262840680,0.8212,3364.3,3363.9,0.2964]
[1732262841087,3.48538965,3364.0,3363.9,0.2964]
[1732262841823,3.48538965,3364.0,3362.5,0.32613249]
[1732262842613,3.48538965,3364.0,3362.9,0.2964]
[1732262843167,0.8212,3364.3,3363.3,0.2964]
[1732262843409,0.7578,3364.6,3363.5,0.2964]
[1732262844871,0.7578,3364.6,3363.6,1.0572]
[1732262848372,0.8157,3364.9,3363.6,1.0572]
[1732262848674,3.48538965,3364.6,3363.8,0.2964]
[1732262849916,3.18888965,3364.6,3363.9,0.2964]
[1732262850815,3.18888965,3364.6,3363.7,0.2964]
[1732262850975,3.18888965,3364.6,3363.9,0.2964]
[1732262856805,3.48538965,3365.0,3363.5,3.0]
[1732262857012,3.48538965,3365.0,3363.6,0.32612505]
[1732262857331,3.48538965,3365.0,3364.0,0.2964]
[1732262857623,3.48538965,3365.0,3364.0,0.70776]
[1732262859034,3.27934232,3366.2,3364.3,0.8116]
[1732262859035,0.30860232,3366.2,3364.3,0.8116]
[1732262859246,3.48538965,3365.9,3364.4,0.2964]
[1732262859388,0.7649,3365.8,3364.4,0.2964]
[1732262859596,0.7649,3365.8,3364.4,0.16693971]
[1732262859792,0.7649,3365.8,3364.4,0.2964]
[1732262859994,0.42502897,3365.7,3364.4,0.2964]
[1732262860926,0.7649,3365.8,3364.6,0.2964]
[1732262861123,0.7649,3365.8,3364.8,0.2964]
[1732262861541,1.18992897,3365.8,3364.8,0.2964]
[1732262863211,0.7649,3365.8,3364.8,0.2964]
[1732262863612,3.48538965,3365.9,3364.8,0.2964]
[1732262863807,3.48538965,3366.3,3364.8,0.2964]
[1732262864007,4.31378965,3366.3,3365.1,0.7567]
[1732262864214,4.31378965,3366.3,3365.2,0.2964]
[1732262867708,0.7903,3365.6,3365.4,0.2964]
[1732262868842,0.7903,3365.6,3365.5,0.2964]
[1732262869052,4.27568965,3365.6,3365.5,0.28051713]
[1732262869250,4.70325862,3365.6,3364.6,0.2964]
[1732262869817,0.55,3365.5,3364.6,0.2964]
[1732262871457,3.55,3365.5,3364.6,0.2964]
[1732262871659,0.82532586,3365.4,3364.6,0.2964]
[1732262871963,3.48538965,3364.8,3363.3,0.02972282]
[1732262872140,3.48538965,3364.8,3362.9,0.8047]
[1732262872351,3.48538965,3364.8,3362.8,0.03972518]
[1732262872352,3.91671861,3364.8,3363.1,0.8047]
[1732262872554,0.8009,3364.7,3363.2,0.83442519]
[1732262872729,1.19257186,3364.7,3363.2,0.83442519]
[1732262872938,1.19257186,3364.7,3363.3,0.2964]
[1732262873134,1.19257186,3364.7,3363.4,0.2964]
[1732262873330,1.19257186,3364.7,3363.6,0.2964]
[1732262874229,1.19257186,3364.7,3363.4,0.2964]
[1732262875146,3.48538965,3364.5,3363.4,0.2964]
[1732262875461,3.48538965,3364.2,3363.4,0.16783186]
[1732262875659,3.48538965,3364.2,3363.4,0.2964]
[1732262877436,0.8009,3364.7,3363.4,0.2964]
[1732262877437,3.48538965,3363.9,3363.4,0.2964]
[1732262877836,3.48538965,3363.6,3363.4,0.2964]
[1732262878171,3.48538965,3363.6,3362.3,0.2964]
[1732262878334,0.34853897,3363.9,3362.5,0.2964]
[1732262878335,3.48538965,3363.0,3362.5,0.2964]
[1732262878667,3.48538965,3363.6,3362.7,0.2964]
[1732262878825,3.48538965,3363.9,3362.9,0.2964]
[1732262879320,3.48538965,3363.6,3362.9,0.2964]
[1732262881066,3.48538965,3363.9,3362.9,0.2964]
[1732262881236,3.48538965,3363.9,3363.0,1.0767]
[1732262881760,3.48538965,3364.2,3363.2,0.2964]
[1732262882064,3.48538965,3364.2,3363.6,0.2964]
[1732262882427,3.48538965,3364.5,3363.6,0.2964]
[1732262882648,3.48538965,3364.8,3363.8,0.2964]
[1732262882822,3.48538965,3365.1,3364.0,0.2964]
[1732262883023,3.48538965,3365.1,3364.0,0.70449237]
[1732262883771,3.48538965,3365.1,3364.0,0.2964]
[1732262884141,3.48538965,3365.1,3363.9,0.64888287]
[1732262884468,3.48538965,3364.9,3363.9,0.64888287]
[1732262884778,0.34853897,3364.8,3363.9,0.64888287]
[1732262885190,3.48538965,3364.3,3364.0,0.2964]
[1732262886441,3.48538965,3364.6,3364.0,0.2964]
[1732262886757,3.0,3365.6,3364.0,0.2964]
[1732262886758,3.48538965,3364.9,3364.0,0.2964]